Workbook

Sheet Tableau de bord
A1: Nouveau client | E1: 1 | F1: 2 | G1: 3 | H1: 4 | I1: 5 | J1: 6 | K1: 7 | L1: 8 | M1: 9 | N1: 10 | O1: 11 | P1: 12
A2: Nom | E2: janvier | F2: février | G2: mars | H2: avril | I2: mai | J2: juin | K2: juillet | L2: août | M2: septembre | N2: octobre | O2: novembre | P2: décembre
A3: Prénom | D3: Total / mois | E3: =SUMIF('Historique factures'!$E:$E,E1,'Historique factures'!$D:$D) -> 75.558 | F3: =SUMIF('Historique factures'!$E:$E,F1,'Historique factures'!$D:$D) -> 197.686 | G3: =SUMIF('Historique factures'!$E:$E,G1,'Historique factures'!$D:$D) -> 168.8 | H3: =SUMIF('Historique factures'!$E:$E,H1,'Historique factures'!$D:$D) -> 0 | I3: =SUMIF('Historique factures'!$E:$E,I1,'Historique factures'!$D:$D) -> 1296.792 | J3: =SUMIF('Historique factures'!$E:$E,J1,'Historique factures'!$D:$D) -> 901.92 | K3: =SUMIF('Historique factures'!$E:$E,K1,'Historique factures'!$D:$D) -> 5930.21 | L3: =SUMIF('Historique factures'!$E:$E,L1,'Historique factures'!$D:$D) -> 0 | M3: =SUMIF('Historique factures'!$E:$E,M1,'Historique factures'!$D:$D) -> 0 | N3: =SUMIF('Historique factures'!$E:$E,N1,'Historique factures'!$D:$D) -> 0 | O3: =SUMIF('Historique factures'!$E:$E,O1,'Historique factures'!$D:$D) -> 0 | P3: =SUMIF('Historique factures'!$E:$E,P1,'Historique factures'!$D:$D) -> 0
A4: Adresse
A5: Code Postal
A6: Ville
A7: Tél
A8: =COUNTIF(Clients!A:A,CONCATENATE(B2," ",B3)) -> 0
A9: Menu
A10: Facture
A11: Stock
A12: Historique
A13: Clients
A14: TVA
A16: Récapitulatif
A17: Montant Max | B17: =MAX(Clients!I:I) -> 6823.048
A18: Le meilleur client | B18: =VLOOKUP(B17,Clients!I:J,2,0) -> Lopez Eric
A19: Montant Min | B19: =MIN('Historique factures'!D:D) -> 39.457
A20: Montant Moyen | B20: =AVERAGE('Historique factures'!D:D) -> 1071.37075
A21: Montant Median | B21: =MEDIAN('Historique factures'!D:D) -> 281.0915
A22: Montant Total | B22: =SUM('Historique factures'!D:D) -> 8570.966
A23: Nombre de facture | B23: =COUNT('Historique factures'!D:D) -> 8

Sheet Facture
A1: Entreprise Fictive 15 av. test 75015 Paris | E1: =TODAY() -> 2019-11-27
E3: =IF(E2="","",VLOOKUP(E2,Clients!A:G,4,0)) -> 
E4: =IF(E2="","",CONCATENATE(VLOOKUP(E2,Clients!A:G,5,0)," ",VLOOKUP(E2,Clients!A:G,6,0))) -> 
E5: =IF(E2="","",VLOOKUP(E2,Clients!A:G,7,0)) -> 
A7: N° de Facture
A8: =IF(MIN(Stock!I:I)<0,"Attention !!! Rupture de stock","") -> 
A9: Ref. | B9: Quant. | C9: Désignation | D9: TVA | E9: P.U ht | F9: P.U ttc | G9: Total ttc | H9: total ht | I9: tva
B10: =IF(A10="","",1) ->  | C10: =IF(A10="","",VLOOKUP(A10,Stock!A:B,2,0)) ->  | D10: =IF(A10="","",VLOOKUP(A10,Stock!A:C,3,0)) ->  | E10: =IF(A10="","",VLOOKUP(A10,Stock!A:D,4,0)) ->  | F10: =IF(A10="","",VLOOKUP(D10,TVA!A:B,2,0)*E10+E10) ->  | G10: =IF(A10="","",B10*F10) ->  | H10: =IF(A10="","",B10*E10) ->  | I10: =IF(A10="","",VLOOKUP(D10,TVA!A:B,2,0)*E10) -> 
B11: =IF(A11="","",1) ->  | C11: =IF(A11="","",VLOOKUP(A11,Stock!A:B,2,0)) ->  | D11: =IF(A11="","",VLOOKUP(A11,Stock!A:C,3,0)) ->  | E11: =IF(A11="","",VLOOKUP(A11,Stock!A:D,4,0)) ->  | F11: =IF(A11="","",VLOOKUP(D11,TVA!A:B,2,0)*E11+E11) ->  | G11: =IF(A11="","",B11*F11) ->  | H11: =IF(A11="","",B11*E11) ->  | I11: =IF(A11="","",VLOOKUP(D11,TVA!A:B,2,0)*E11) -> 
C12: =IF(A12="","",VLOOKUP(A12,Stock!A:B,2,0)) ->  | D12: =IF(A12="","",VLOOKUP(A12,Stock!A:C,3,0)) ->  | E12: =IF(A12="","",VLOOKUP(A12,Stock!A:D,4,0)) ->  | F12: =IF(A12="","",VLOOKUP(D12,TVA!A:B,2,0)*E12+E12) ->  | I12: =IF(A12="","",VLOOKUP(D12,TVA!A:B,2,0)*E12) -> 
C13: =IF(A13="","",VLOOKUP(A13,Stock!A:B,2,0)) ->  | D13: =IF(A13="","",VLOOKUP(A13,Stock!A:C,3,0)) ->  | E13: =IF(A13="","",VLOOKUP(A13,Stock!A:D,4,0)) ->  | F13: =IF(A13="","",VLOOKUP(D13,TVA!A:B,2,0)*E13+E13) ->  | I13: =IF(A13="","",VLOOKUP(D13,TVA!A:B,2,0)*E13) -> 
C14: =IF(A14="","",VLOOKUP(A14,Stock!A:B,2,0)) ->  | D14: =IF(A14="","",VLOOKUP(A14,Stock!A:C,3,0)) ->  | E14: =IF(A14="","",VLOOKUP(A14,Stock!A:D,4,0)) ->  | F14: =IF(A14="","",VLOOKUP(D14,TVA!A:B,2,0)*E14+E14) ->  | I14: =IF(A14="","",VLOOKUP(D14,TVA!A:B,2,0)*E14) -> 
C15: =IF(A15="","",VLOOKUP(A15,Stock!A:B,2,0)) ->  | D15: =IF(A15="","",VLOOKUP(A15,Stock!A:C,3,0)) ->  | E15: =IF(A15="","",VLOOKUP(A15,Stock!A:D,4,0)) ->  | F15: =IF(A15="","",VLOOKUP(D15,TVA!A:B,2,0)*E15+E15) ->  | I15: =IF(A15="","",VLOOKUP(D15,TVA!A:B,2,0)*E15) -> 
C16: =IF(A16="","",VLOOKUP(A16,Stock!A:B,2,0)) ->  | D16: =IF(A16="","",VLOOKUP(A16,Stock!A:C,3,0)) ->  | E16: =IF(A16="","",VLOOKUP(A16,Stock!A:D,4,0)) ->  | F16: =IF(A16="","",VLOOKUP(D16,TVA!A:B,2,0)*E16+E16) ->  | I16: =IF(A16="","",VLOOKUP(D16,TVA!A:B,2,0)*E16) -> 
C17: =IF(A17="","",VLOOKUP(A17,Stock!A:B,2,0)) ->  | D17: =IF(A17="","",VLOOKUP(A17,Stock!A:C,3,0)) ->  | E17: =IF(A17="","",VLOOKUP(A17,Stock!A:D,4,0)) ->  | F17: =IF(A17="","",VLOOKUP(D17,TVA!A:B,2,0)*E17+E17) ->  | I17: =IF(A17="","",VLOOKUP(D17,TVA!A:B,2,0)*E17) -> 
C18: =IF(A18="","",VLOOKUP(A18,Stock!A:B,2,0)) ->  | D18: =IF(A18="","",VLOOKUP(A18,Stock!A:C,3,0)) ->  | E18: =IF(A18="","",VLOOKUP(A18,Stock!A:D,4,0)) ->  | F18: =IF(A18="","",VLOOKUP(D18,TVA!A:B,2,0)*E18+E18) ->  | I18: =IF(A18="","",VLOOKUP(D18,TVA!A:B,2,0)*E18) -> 
C19: =IF(A19="","",VLOOKUP(A19,Stock!A:B,2,0)) ->  | D19: =IF(A19="","",VLOOKUP(A19,Stock!A:C,3,0)) ->  | E19: =IF(A19="","",VLOOKUP(A19,Stock!A:D,4,0)) ->  | F19: =IF(A19="","",VLOOKUP(D19,TVA!A:B,2,0)*E19+E19) ->  | I19: =IF(A19="","",VLOOKUP(D19,TVA!A:B,2,0)*E19) -> 
C20: =IF(A20="","",VLOOKUP(A20,Stock!A:B,2,0)) ->  | D20: =IF(A20="","",VLOOKUP(A20,Stock!A:C,3,0)) ->  | E20: =IF(A20="","",VLOOKUP(A20,Stock!A:D,4,0)) ->  | F20: =IF(A20="","",VLOOKUP(D20,TVA!A:B,2,0)*E20+E20) ->  | I20: =IF(A20="","",VLOOKUP(D20,TVA!A:B,2,0)*E20) -> 
C21: =IF(A21="","",VLOOKUP(A21,Stock!A:B,2,0)) ->  | D21: =IF(A21="","",VLOOKUP(A21,Stock!A:C,3,0)) ->  | E21: =IF(A21="","",VLOOKUP(A21,Stock!A:D,4,0)) ->  | F21: =IF(A21="","",VLOOKUP(D21,TVA!A:B,2,0)*E21+E21) ->  | I21: =IF(A21="","",VLOOKUP(D21,TVA!A:B,2,0)*E21) -> 
C22: =IF(A22="","",VLOOKUP(A22,Stock!A:B,2,0)) ->  | D22: =IF(A22="","",VLOOKUP(A22,Stock!A:C,3,0)) ->  | E22: =IF(A22="","",VLOOKUP(A22,Stock!A:D,4,0)) ->  | F22: =IF(A22="","",VLOOKUP(D22,TVA!A:B,2,0)*E22+E22) ->  | I22: =IF(A22="","",VLOOKUP(D22,TVA!A:B,2,0)*E22) -> 
C23: =IF(A23="","",VLOOKUP(A23,Stock!A:B,2,0)) ->  | D23: =IF(A23="","",VLOOKUP(A23,Stock!A:C,3,0)) ->  | E23: =IF(A23="","",VLOOKUP(A23,Stock!A:D,4,0)) ->  | F23: =IF(A23="","",VLOOKUP(D23,TVA!A:B,2,0)*E23+E23) ->  | I23: =IF(A23="","",VLOOKUP(D23,TVA!A:B,2,0)*E23) -> 
C24: =IF(A24="","",VLOOKUP(A24,Stock!A:B,2,0)) ->  | D24: =IF(A24="","",VLOOKUP(A24,Stock!A:C,3,0)) ->  | E24: =IF(A24="","",VLOOKUP(A24,Stock!A:D,4,0)) ->  | F24: =IF(A24="","",VLOOKUP(D24,TVA!A:B,2,0)*E24+E24) ->  | I24: =IF(A24="","",VLOOKUP(D24,TVA!A:B,2,0)*E24) -> 
C25: =IF(A25="","",VLOOKUP(A25,Stock!A:B,2,0)) ->  | D25: =IF(A25="","",VLOOKUP(A25,Stock!A:C,3,0)) ->  | E25: =IF(A25="","",VLOOKUP(A25,Stock!A:D,4,0)) ->  | F25: =IF(A25="","",VLOOKUP(D25,TVA!A:B,2,0)*E25+E25) ->  | I25: =IF(A25="","",VLOOKUP(D25,TVA!A:B,2,0)*E25) -> 
C26: =IF(A26="","",VLOOKUP(A26,Stock!A:B,2,0)) ->  | D26: =IF(A26="","",VLOOKUP(A26,Stock!A:C,3,0)) ->  | E26: =IF(A26="","",VLOOKUP(A26,Stock!A:D,4,0)) ->  | F26: =IF(A26="","",VLOOKUP(D26,TVA!A:B,2,0)*E26+E26) ->  | I26: =IF(A26="","",VLOOKUP(D26,TVA!A:B,2,0)*E26) -> 
C27: =IF(A27="","",VLOOKUP(A27,Stock!A:B,2,0)) ->  | D27: =IF(A27="","",VLOOKUP(A27,Stock!A:C,3,0)) ->  | E27: =IF(A27="","",VLOOKUP(A27,Stock!A:D,4,0)) ->  | F27: =IF(A27="","",VLOOKUP(D27,TVA!A:B,2,0)*E27+E27) ->  | I27: =IF(A27="","",VLOOKUP(D27,TVA!A:B,2,0)*E27) -> 
B28: =IF(A28="","",1) ->  | C28: =IF(A28="","",VLOOKUP(A28,Stock!A:B,2,0)) ->  | D28: =IF(A28="","",VLOOKUP(A28,Stock!A:C,3,0)) ->  | E28: =IF(A28="","",VLOOKUP(A28,Stock!A:D,4,0)) ->  | F28: =IF(A28="","",VLOOKUP(D28,TVA!A:B,2,0)*E28+E28) ->  | I28: =IF(A28="","",VLOOKUP(D28,TVA!A:B,2,0)*E28) -> 
C29: =IF(A29="","",VLOOKUP(A29,Stock!A:B,2,0)) ->  | D29: =IF(A29="","",VLOOKUP(A29,Stock!A:C,3,0)) ->  | E29: =IF(A29="","",VLOOKUP(A29,Stock!A:D,4,0)) ->  | F29: =IF(A29="","",VLOOKUP(D29,TVA!A:B,2,0)*E29+E29) ->  | I29: =IF(A29="","",VLOOKUP(D29,TVA!A:B,2,0)*E29) -> 
C30: =IF(A30="","",VLOOKUP(A30,Stock!A:B,2,0)) ->  | D30: =IF(A30="","",VLOOKUP(A30,Stock!A:C,3,0)) ->  | E30: =IF(A30="","",VLOOKUP(A30,Stock!A:D,4,0)) ->  | F30: =IF(A30="","",VLOOKUP(D30,TVA!A:B,2,0)*E30+E30) ->  | I30: =IF(A30="","",VLOOKUP(D30,TVA!A:B,2,0)*E30) -> 
C31: =IF(A31="","",VLOOKUP(A31,Stock!A:B,2,0)) ->  | D31: =IF(A31="","",VLOOKUP(A31,Stock!A:C,3,0)) ->  | E31: =IF(A31="","",VLOOKUP(A31,Stock!A:D,4,0)) ->  | F31: =IF(A31="","",VLOOKUP(D31,TVA!A:B,2,0)*E31+E31) ->  | I31: =IF(A31="","",VLOOKUP(D31,TVA!A:B,2,0)*E31) -> 
C32: =IF(A32="","",VLOOKUP(A32,Stock!A:B,2,0)) ->  | D32: =IF(A32="","",VLOOKUP(A32,Stock!A:C,3,0)) ->  | E32: =IF(A32="","",VLOOKUP(A32,Stock!A:D,4,0)) ->  | F32: =IF(A32="","",VLOOKUP(D32,TVA!A:B,2,0)*E32+E32) ->  | I32: =IF(A32="","",VLOOKUP(D32,TVA!A:B,2,0)*E32) -> 
C33: =IF(A33="","",VLOOKUP(A33,Stock!A:B,2,0)) ->  | D33: =IF(A33="","",VLOOKUP(A33,Stock!A:C,3,0)) ->  | E33: =IF(A33="","",VLOOKUP(A33,Stock!A:D,4,0)) ->  | F33: =IF(A33="","",VLOOKUP(D33,TVA!A:B,2,0)*E33+E33) ->  | I33: =IF(A33="","",VLOOKUP(D33,TVA!A:B,2,0)*E33) -> 
C34: =IF(A34="","",VLOOKUP(A34,Stock!A:B,2,0)) ->  | D34: =IF(A34="","",VLOOKUP(A34,Stock!A:C,3,0)) ->  | E34: =IF(A34="","",VLOOKUP(A34,Stock!A:D,4,0)) ->  | F34: =IF(A34="","",VLOOKUP(D34,TVA!A:B,2,0)*E34+E34) ->  | I34: =IF(A34="","",VLOOKUP(D34,TVA!A:B,2,0)*E34) -> 
C35: =IF(A35="","",VLOOKUP(A35,Stock!A:B,2,0)) ->  | D35: =IF(A35="","",VLOOKUP(A35,Stock!A:C,3,0)) ->  | E35: =IF(A35="","",VLOOKUP(A35,Stock!A:D,4,0)) ->  | F35: =IF(A35="","",VLOOKUP(D35,TVA!A:B,2,0)*E35+E35) ->  | I35: =IF(A35="","",VLOOKUP(D35,TVA!A:B,2,0)*E35) -> 
C36: =IF(A36="","",VLOOKUP(A36,Stock!A:B,2,0)) ->  | D36: =IF(A36="","",VLOOKUP(A36,Stock!A:C,3,0)) ->  | E36: =IF(A36="","",VLOOKUP(A36,Stock!A:D,4,0)) ->  | F36: =IF(A36="","",VLOOKUP(D36,TVA!A:B,2,0)*E36+E36) ->  | I36: =IF(A36="","",VLOOKUP(D36,TVA!A:B,2,0)*E36) -> 
C37: =IF(A37="","",VLOOKUP(A37,Stock!A:B,2,0)) ->  | D37: =IF(A37="","",VLOOKUP(A37,Stock!A:C,3,0)) ->  | E37: =IF(A37="","",VLOOKUP(A37,Stock!A:D,4,0)) ->  | F37: =IF(A37="","",VLOOKUP(D37,TVA!A:B,2,0)*E37+E37) ->  | I37: =IF(A37="","",VLOOKUP(D37,TVA!A:B,2,0)*E37) -> 
C38: =IF(A38="","",VLOOKUP(A38,Stock!A:B,2,0)) ->  | D38: =IF(A38="","",VLOOKUP(A38,Stock!A:C,3,0)) ->  | E38: =IF(A38="","",VLOOKUP(A38,Stock!A:D,4,0)) ->  | F38: =IF(A38="","",VLOOKUP(D38,TVA!A:B,2,0)*E38+E38) ->  | H38: =IF(A38="","",B38*E38) ->  | I38: =IF(A38="","",VLOOKUP(D38,TVA!A:B,2,0)*E38) -> 
C39: =IF(A39="","",VLOOKUP(A39,Stock!A:B,2,0)) ->  | D39: =IF(A39="","",VLOOKUP(A39,Stock!A:C,3,0)) ->  | E39: =IF(A39="","",VLOOKUP(A39,Stock!A:D,4,0)) ->  | F39: =IF(A39="","",VLOOKUP(D39,TVA!A:B,2,0)*E39+E39) ->  | I39: =IF(A39="","",VLOOKUP(D39,TVA!A:B,2,0)*E39) -> 
C40: =IF(A40="","",VLOOKUP(A40,Stock!A:B,2,0)) ->  | D40: =IF(A40="","",VLOOKUP(A40,Stock!A:C,3,0)) ->  | E40: =IF(A40="","",VLOOKUP(A40,Stock!A:D,4,0)) ->  | F40: =IF(A40="","",VLOOKUP(D40,TVA!A:B,2,0)*E40+E40) ->  | I40: =IF(A40="","",VLOOKUP(D40,TVA!A:B,2,0)*E40) -> 
D41: Total ht | G41: =SUM(H10:H40) -> 0
D42: TVA | G42: =SUM(I10:I40) -> 0
D43: Frais de Port
D44: Total ttc | G44: =SUM(G10:G40)+G43 -> 0

Sheet Stock
A1: Ref. | B1: Désignation | C1: Code TVA | D1: Prix HT | E1: Quantité | F1: Mini | G1: Rupture | H1: facture en cours | I1: Stock après facture
A2: D101 | B2: Anchoïde à la provençale - 210 gr | C2: 1 | D2: 5.4 | E2: 90 | F2: 10 | G2: =IF(E2<F2,"Rupture de stock","") ->  | H2: =SUMIF(Facture!$A$10:$A$40,A2,Facture!$B$10:$B$40) -> 0 | I2: =E2-H2 -> 90
A3: HO110 | B3: Sachet Provençal "Mouans-Sartoux" | C3: 2 | D3: 5.4 | E3: 95 | F3: 10 | H3: =SUMIF(Facture!$A$10:$A$40,A3,Facture!$B$10:$B$40) -> 0 | I3: =E3-H3 -> 95
A4: H101 | B4: Huile d'olive vierge extra Nice 1L | C4: 1 | D4: 16 | E4: 46 | F4: 5 | H4: =SUMIF(Facture!$A$10:$A$40,A4,Facture!$B$10:$B$40) -> 0 | I4: 46
A5: O101 | B5: Olive Noires de Nice 250 gr | C5: 1 | D5: 3.6 | E5: 97 | F5: 10 | H5: =SUMIF(Facture!$A$10:$A$40,A5,Facture!$B$10:$B$40) -> 0 | I5: 97
A6: C101 | B6: Coffret cadeau Nice | C6: 2 | D6: 148 | E6: 30 | F6: 5 | H6: =SUMIF(Facture!$A$10:$A$40,A6,Facture!$B$10:$B$40) -> 0 | I6: 30
A7: DH105 | B7: Savonette Amandes douces - 125 gr | C7: 2 | D7: 60 | E7: 0 | F7: 30 | G7: Rupture de stock | H7: =SUMIF(Facture!$A$10:$A$40,A7,Facture!$B$10:$B$40) -> 0 | I7: 0

Sheet Historique factures
A1: N° facture | B1: Client | C1: Date | D1: Montant | E1: mois | U1: =COUNTA(A:A) -> 9
A2: 8 | B2: Lopez Eric | C2: 2013-07-08 | D2: 5526.256 | E2: =MONTH(C2) -> 7
A3: 7 | B3: Laurette Marie | C3: 2013-03-08 | D3: 168.8 | E3: =MONTH(C3) -> 3
A4: 6 | B4: Dupond François | C4: 2013-06-08 | D4: 901.92 | E4: =MONTH(C4) -> 6
A5: 5 | B5: Laurette Marie | C5: 2013-07-08 | D5: 364.497 | E5: =MONTH(C5) -> 7
A6: 4 | B6: Lopez Eric | C6: 2013-05-08 | D6: 1296.792 | E6: 5
A7: 3 | B7: Dupond François | C7: 2013-07-15 | D7: 39.457 | E7: 7
A8: 2 | B8: Laurette Marie | C8: 2013-01-08 | D8: 75.558 | E8: 1
A9: 1 | B9: Dupond François | C9: 2013-02-08 | D9: 197.686 | E9: 2

Sheet Clients
A1: Identifiant | B1: Nom | C1: Prénom | D1: Adresse | E1: Code Postal | F1: Ville | G1: Tél. | H1: factures | I1: Montant total | J1: Identifiant
A2: =CONCATENATE(B2," ",C2) -> Lopez Eric | B2: Lopez | C2: Eric | D2: 45 rue … | E2: 16000 | F2: Angouleme | G2: 05 45 87 98 54 | H2: =COUNTIF('Historique factures'!B:B,A2) -> 2 | I2: =SUMIF('Historique factures'!B:B,A2,'Historique factures'!D:D) -> 6823.048 | J2: =A2 -> Lopez Eric
A3: =CONCATENATE(B3," ",C3) -> Dupond François | B3: Dupond | C3: François | D3: 54 av … | E3: 75018 | F3: Paris | G3: 01 12 45 21 54 | H3: =COUNTIF('Historique factures'!B:B,A3) -> 3 | I3: =SUMIF('Historique factures'!B:B,A3,'Historique factures'!D:D) -> 1139.063 | J3: =A3 -> Dupond François
A4: =CONCATENATE(B4," ",C4) -> Laurette Marie | B4: Laurette | C4: Marie | D4: 21 rue … | E4: 75019 | F4: Paris | G4: 02 02 21 54 32 | H4: =COUNTIF('Historique factures'!B:B,A4) -> 3 | I4: =SUMIF('Historique factures'!B:B,A4,'Historique factures'!D:D) -> 608.855 | J4: Laurette Marie

Sheet TVA
A1: Code TVA | B1: Taux
A2: 1 | B2: 0.055
A3: 2 | B3: 0.196
